{"text_format":"1","workbook":"xlsx","n_sheets":1,"sheets":["Datos"],"not_rendered":{"charts":0,"images":0,"macros":1,"external_links":0,"defined_names":0,"comments":0,"pivot_tables":0},"unopened":[],"bounds":{"document_bytes":16777216,"sheet_cells":100000,"rows_first":2000,"rows_last":500,"rows_between":2000,"halvings":0,"cell_chars":16384,"cell_head_chars":4096},"cells_cut":0,"cells_raw":0,"read":"whole","date_system":"1900"}

{"sheet":"Datos","index":0,"n_rows":191,"n_cols":7,"rows_kept":191,"cut":false,"hidden":false,"merged":[]}
["NOMBRE","APELLIDO","DATO 1","DATO 2","DATO 3","DATO 4"]
["YADIRA RACANELLI","Yadira Racanelli","Abbie Dykstra","Yadira Racanelli","Abbie Dykstra","Yadira Racanelli",{"$f":"UPPER(F2)","v":"YADIRA RACANELLI"}]
["WINFORD RAVER","Winford Raver","Abram Lawton","Winford Raver","Abram Lawton","Winford Raver",{"$f":"UPPER(F3)","v":"WINFORD RAVER"}]
["WILLOW BRONNER","Willow Bronner","Adalberto Wolff","Willow Bronner","Adalberto Wolff","Willow Bronner","WILLOW BRONNER"]
["WILL PRIGGE","Will Prigge","Albertha Furby","Will Prigge","Albertha Furby","Will Prigge","WILL PRIGGE"]
["WENDY FINKLE","Wendy Finkle","Aldo Rogan","Wendy Finkle","Aldo Rogan","Wendy Finkle","WENDY FINKLE"]
["VIOLA GEAN","Viola Gean","Alena Ecklund","Viola Gean","Alena Ecklund","Viola Gean","VIOLA GEAN"]
["VICTORIA DEJESUS","Victoria Dejesus","Alexander Millwood","Victoria Dejesus","Alexander Millwood","Victoria Dejesus","VICTORIA DEJESUS"]
["VETA VALLE","Veta Valle","Alice Auslander","Veta Valle","Alice Auslander","Veta Valle","VETA VALLE"]
["VERTIE CARDINAL","Vertie Cardinal","Alix Ruano","Vertie Cardinal","Alix Ruano","Vertie Cardinal","VERTIE CARDINAL"]
["VERSIE HAWKER","Versie Hawker","Allie Beier","Versie Hawker","Allie Beier","Versie Hawker","VERSIE HAWKER"]
["VERNETTA LEVEQUE","Vernetta Leveque","Alycia Hamsher","Vernetta Leveque","Alycia Hamsher","Vernetta Leveque","VERNETTA LEVEQUE"]
["VERLENE PADEN","Verlene Paden","Amal Souliere","Verlene Paden","Amal Souliere","Verlene Paden","VERLENE PADEN"]
["VEOLA DIGGINS","Veola Diggins","An Wirth","Veola Diggins","An Wirth","Veola Diggins","VEOLA DIGGINS"]
["TRACEY BEGAY","Tracey Begay","Andrew Axelrod","Tracey Begay","Andrew Axelrod","Tracey Begay","TRACEY BEGAY"]
["TODD BRIMAGE","Todd Brimage","Angel Piro","Todd Brimage","Angel Piro","Todd Brimage","TODD BRIMAGE"]
["TINA BUELL","Tina Buell","Annelle Gibbon","Tina Buell","Annelle Gibbon","Tina Buell","TINA BUELL"]
["THOMASENA EISNER","Thomasena Eisner","Ardell Stanberry","Thomasena Eisner","Ardell Stanberry","Thomasena Eisner","THOMASENA EISNER"]
["TERRIE SHOLES","Terrie Sholes","Arnold Groesbeck","Terrie Sholes","Arnold Groesbeck","Terrie Sholes","TERRIE SHOLES"]
["TEODORO RENAUD","Teodoro Renaud","Ashlea Mahan","Teodoro Renaud","Ashlea Mahan","Teodoro Renaud","TEODORO RENAUD"]
["TENNIE RIDDELL","Tennie Riddell","Aurelio Line","Tennie Riddell","Aurelio Line","Tennie Riddell","TENNIE RIDDELL"]
["TENISHA HADDEN","Tenisha Hadden","Azucena Wyatt","Tenisha Hadden","Azucena Wyatt","Tenisha Hadden","TENISHA HADDEN"]
["TAWNYA HIGBY","Tawnya Higby","Bethanie Rolfes","Tawnya Higby","Bethanie Rolfes","Tawnya Higby","TAWNYA HIGBY"]
["TAMELA GILLETT","Tamela Gillett","Betsy Chrisman","Tamela Gillett","Betsy Chrisman","Tamela Gillett","TAMELA GILLETT"]
["TAMA MURRAH","Tama Murrah","Booker Baumbach","Tama Murrah","Booker Baumbach","Tama Murrah","TAMA MURRAH"]
["SUZY PORTALES","Suzy Portales","Bradford Suhr","Suzy Portales","Bradford Suhr","Suzy Portales","SUZY PORTALES"]
["SUZANNE COACHMAN","Suzanne Coachman","Brain Maresca","Suzanne Coachman","Brain Maresca","Suzanne Coachman","SUZANNE COACHMAN"]
["SORAYA MORONES","Soraya Morones","Brianna Clemmer","Soraya Morones","Brianna Clemmer","Soraya Morones","SORAYA MORONES"]
["SLYVIA KUCHERA","Slyvia Kuchera","Brigid Hobdy","Slyvia Kuchera","Brigid Hobdy","Slyvia Kuchera","SLYVIA KUCHERA"]
["SIGNE RODRIGUEZ","Signe Rodriguez","Burl Calahan","Signe Rodriguez","Burl Calahan","Signe Rodriguez","SIGNE RODRIGUEZ"]
["SHERLY BURSON","Sherly Burson","Byron Bevis","Sherly Burson","Byron Bevis","Sherly Burson","SHERLY BURSON"]
["SHELDON KIESLING","Sheldon Kiesling","Calvin Langevin","Sheldon Kiesling","Calvin Langevin","Sheldon Kiesling","SHELDON KIESLING"]
["SHAROLYN MASTEN","Sharolyn Masten","Candi Surace","Sharolyn Masten","Candi Surace","Sharolyn Masten","SHAROLYN MASTEN"]
["SHANIQUA BUTTERY","Shaniqua Buttery","Carlie Mccarthy","Shaniqua Buttery","Carlie Mccarthy","Shaniqua Buttery","SHANIQUA BUTTERY"]
["SERAFINA PRATER","Serafina Prater","Cesar Havel","Serafina Prater","Cesar Havel","Serafina Prater","SERAFINA PRATER"]
["SANFORD MOTTER","Sanford Motter","Chanel Waterhouse","Sanford Motter","Chanel Waterhouse","Sanford Motter","SANFORD MOTTER"]
["SAMIRA LIPTON","Samira Lipton","Charlott Capella","Samira Lipton","Charlott Capella","Samira Lipton","SAMIRA LIPTON"]
["SAMARA GADSON","Samara Gadson","Charlsie Smolen","Samara Gadson","Charlsie Smolen","Samara Gadson","SAMARA GADSON"]
["SAL SETLIFF","Sal Setliff","Cherelle Durante","Sal Setliff","Cherelle Durante","Sal Setliff","SAL SETLIFF"]
["ROYCE DIERKING","Royce Dierking","Chi Sealey","Royce Dierking","Chi Sealey","Royce Dierking","ROYCE DIERKING"]
["ROSITA SPEIR","Rosita Speir","Cinderella Dessert","Rosita Speir","Cinderella Dessert","Rosita Speir","ROSITA SPEIR"]
["ROSETTE PATZ","Rosette Patz","Clarissa Place","Rosette Patz","Clarissa Place","Rosette Patz","ROSETTE PATZ"]
["ROBENA RESLER","Robena Resler","Clorinda Coy","Robena Resler","Clorinda Coy","Robena Resler","ROBENA RESLER"]
["RIVKA VARONA","Rivka Varona","Collin Aguilera","Rivka Varona","Collin Aguilera","Rivka Varona","RIVKA VARONA"]
["RICHIE VANGIESON","Richie Vangieson","Corinna Spady","Richie Vangieson","Corinna Spady","Richie Vangieson","RICHIE VANGIESON"]
["RESSIE SILVERA","Ressie Silvera","Cristie Coles","Ressie Silvera","Cristie Coles","Ressie Silvera","RESSIE SILVERA"]
["RENAE WINNER","Renae Winner","Dakota Libbey","Renae Winner","Dakota Libbey","Renae Winner","RENAE WINNER"]
["REGINIA SCHURR","Reginia Schurr","Dana Beecham","Reginia Schurr","Dana Beecham","Reginia Schurr","REGINIA SCHURR"]
["RAFAEL CATER","Rafael Cater","Dante Votaw","Rafael Cater","Dante Votaw","Rafael Cater","RAFAEL CATER"]
["PRISCILLA BOHRER","Priscilla Bohrer","Debbie Bourg","Priscilla Bohrer","Debbie Bourg","Priscilla Bohrer","PRISCILLA BOHRER"]
["PATRICE CARUSO","Patrice Caruso","Deeann Kreger","Patrice Caruso","Deeann Kreger","Patrice Caruso","PATRICE CARUSO"]
["PAMALA LAUDERDALE","Pamala Lauderdale","Delinda Hamby","Pamala Lauderdale","Delinda Hamby","Pamala Lauderdale","PAMALA LAUDERDALE"]
["OTIS HAVENER","Otis Havener","Delta Imhoff","Otis Havener","Delta Imhoff","Otis Havener","OTIS HAVENER"]
["ORPHA WAGER","Orpha Wager","Diego Omeara","Orpha Wager","Diego Omeara","Orpha Wager","ORPHA WAGER"]
["OMER NOELL","Omer Noell","Duncan Gehl","Omer Noell","Duncan Gehl","Omer Noell","OMER NOELL"]
["NORENE HUNSAKER","Norene Hunsaker","Dusty Bewley","Norene Hunsaker","Dusty Bewley","Norene Hunsaker","NORENE HUNSAKER"]
["NOBLE KENLEY","Noble Kenley","Ebonie Finnerty","Noble Kenley","Ebonie Finnerty","Noble Kenley","NOBLE KENLEY"]
["NITA GABOUREL","Nita Gabourel","Eduardo Swofford","Nita Gabourel","Eduardo Swofford","Nita Gabourel","NITA GABOUREL"]
["NIGEL HARBOR","Nigel Harbor","Edyth Havel","Nigel Harbor","Edyth Havel","Nigel Harbor","NIGEL HARBOR"]
["NIEVES HANER","Nieves Haner","Elba Bergman","Nieves Haner","Elba Bergman","Nieves Haner","NIEVES HANER"]
["NEVILLE VITIELLO","Neville Vitiello","Elina Bobb","Neville Vitiello","Elina Bobb","Neville Vitiello","NEVILLE VITIELLO"]
["NELIA LINT","Nelia Lint","Elisabeth Kottwitz","Nelia Lint","Elisabeth Kottwitz","Nelia Lint","NELIA LINT"]
["NANNETTE ROSSON","Nannette Rosson","Ellis Nishimoto","Nannette Rosson","Ellis Nishimoto","Nannette Rosson","NANNETTE ROSSON"]
["MIKA BANEY","Mika Baney","Enola Schrum","Mika Baney","Enola Schrum","Mika Baney","MIKA BANEY"]
["MELISSIA HOLLOW","Melissia Hollow","Eufemia Rivard","Melissia Hollow","Eufemia Rivard","Melissia Hollow","MELISSIA HOLLOW"]
["MELDA SCHOLTEN","Melda Scholten","Eugenia Parnell","Melda Scholten","Eugenia Parnell","Melda Scholten","MELDA SCHOLTEN"]
["MEAGAN PELLER","Meagan Peller","Eveline Tousant","Meagan Peller","Eveline Tousant","Meagan Peller",{"$f":"UPPER(F67)","v":"MEAGAN PELLER"}]
["MARILEE SCHLICHTING","Marilee Schlichting","Fausto Carden","Marilee Schlichting","Fausto Carden","Marilee Schlichting","MARILEE SCHLICHTING"]
["MARICRUZ RESLER","Maricruz Resler","Fernanda Dowd","Maricruz Resler","Fernanda Dowd","Maricruz Resler","MARICRUZ RESLER"]
["MARGRET SLAVEN","Margret Slaven","Ferne Helstrom","Margret Slaven","Ferne Helstrom","Margret Slaven","MARGRET SLAVEN"]
["MARGERY TOW","Margery Tow","Flora Nuckols","Margery Tow","Flora Nuckols","Margery Tow","MARGERY TOW"]
["MARCY DUPREE","Marcy Dupree","Frida Mccluskey","Marcy Dupree","Frida Mccluskey","Marcy Dupree","MARCY DUPREE"]
["MAILE WALLACE","Maile Wallace","Gabriel Otwell","Maile Wallace","Gabriel Otwell","Maile Wallace","MAILE WALLACE"]
["MACIE PUMPHREY","Macie Pumphrey","Genaro Laufer","Macie Pumphrey","Genaro Laufer","Macie Pumphrey","MACIE PUMPHREY"]
["LUZ MILLETTE","Luz Millette","Georgina Clower","Luz Millette","Georgina Clower","Luz Millette","LUZ MILLETTE"]
["LUNA WILBANKS","Luna Wilbanks","Gertrude Larson","Luna Wilbanks","Gertrude Larson","Luna Wilbanks","LUNA WILBANKS"]
["LUDIVINA ROIG","Ludivina Roig","Glinda Schreiner","Ludivina Roig","Glinda Schreiner","Ludivina Roig","LUDIVINA ROIG"]
["LUCILLA BERTA","Lucilla Berta","Grover Fury","Lucilla Berta","Grover Fury","Lucilla Berta","LUCILLA BERTA"]
["LOVELLA DEFREITAS","Lovella Defreitas","Guy Ropp","Lovella Defreitas","Guy Ropp","Lovella Defreitas","LOVELLA DEFREITAS"]
["LORRIANE HAILE","Lorriane Haile","Gwyn Vangorder","Lorriane Haile","Gwyn Vangorder","Lorriane Haile","LORRIANE HAILE"]
["LORIS BOUCK","Loris Bouck","Hayden Courson","Loris Bouck","Hayden Courson","Loris Bouck","LORIS BOUCK"]
["LORETTA WHITIS","Loretta Whitis","Hayden Pua","Loretta Whitis","Hayden Pua","Loretta Whitis","LORETTA WHITIS"]
["LIZABETH EASTERLY","Lizabeth Easterly","Hyon Earhart","Lizabeth Easterly","Hyon Earhart","Lizabeth Easterly","LIZABETH EASTERLY"]
["LITA LANE","Lita Lane","Iris Barwick","Lita Lane","Iris Barwick","Lita Lane","LITA LANE"]
["LINWOOD FLUKER","Linwood Fluker","Jannie Hock","Linwood Fluker","Jannie Hock","Linwood Fluker","LINWOOD FLUKER"]
["LEONA STMARTIN","Leona Stmartin","Jean Swindell","Leona Stmartin","Jean Swindell","Leona Stmartin","LEONA STMARTIN"]
["LEILANI STUDIVANT","Leilani Studivant","Jeanice Scuderi","Leilani Studivant","Jeanice Scuderi","Leilani Studivant","LEILANI STUDIVANT"]
["LEILANI CLERMONT","Leilani Clermont","Jeannine Latson","Leilani Clermont","Jeannine Latson","Leilani Clermont","LEILANI CLERMONT"]
["LEE KRAFT","Lee Kraft","Jeri Wolfgang","Lee Kraft","Jeri Wolfgang","Lee Kraft","LEE KRAFT"]
["LAMONT DECUIR","Lamont Decuir","Jestine Quijano","Lamont Decuir","Jestine Quijano","Lamont Decuir","LAMONT DECUIR"]
["LAKESHA RAEL","Lakesha Rael","Joelle Crinklaw","Lakesha Rael","Joelle Crinklaw","Lakesha Rael","LAKESHA RAEL"]
["KRYSTINA SCHLATTER","Krystina Schlatter","Joellen Josephs","Krystina Schlatter","Joellen Josephs","Krystina Schlatter","KRYSTINA SCHLATTER"]
["KRISTI DAMELIO","Kristi Damelio","Johnetta Saltsman","Kristi Damelio","Johnetta Saltsman","Kristi Damelio","KRISTI DAMELIO"]
["KELSI COLUMBIA","Kelsi Columbia","Josette Ofarrell","Kelsi Columbia","Josette Ofarrell","Kelsi Columbia","KELSI COLUMBIA"]
["KEENAN WOHLGEMUTH","Keenan Wohlgemuth","Juliann Madia","Keenan Wohlgemuth","Juliann Madia","Keenan Wohlgemuth","KEENAN WOHLGEMUTH"]
["KASHA EVANGELISTA","Kasha Evangelista","Karey Claus","Kasha Evangelista","Karey Claus","Kasha Evangelista","KASHA EVANGELISTA"]
["KAREY CLAUS","Karey Claus","Kasha Evangelista","Karey Claus","Kasha Evangelista","Karey Claus","KAREY CLAUS"]
["JULIANN MADIA","Juliann Madia","Keenan Wohlgemuth","Juliann Madia","Keenan Wohlgemuth","Juliann Madia","JULIANN MADIA"]
["JOSETTE OFARRELL","Josette Ofarrell","Kelsi Columbia","Josette Ofarrell","Kelsi Columbia","Josette Ofarrell","JOSETTE OFARRELL"]
["JOHNETTA SALTSMAN","Johnetta Saltsman","Kristi Damelio","Johnetta Saltsman","Kristi Damelio","Johnetta Saltsman","JOHNETTA SALTSMAN"]
["JOELLEN JOSEPHS","Joellen Josephs","Krystina Schlatter","Joellen Josephs","Krystina Schlatter","Joellen Josephs","JOELLEN JOSEPHS"]
["JOELLE CRINKLAW","Joelle Crinklaw","Lakesha Rael","Joelle Crinklaw","Lakesha Rael","Joelle Crinklaw","JOELLE CRINKLAW"]
["JESTINE QUIJANO","Jestine Quijano","Lamont Decuir","Jestine Quijano","Lamont Decuir","Jestine Quijano","JESTINE QUIJANO"]
["JERI WOLFGANG","Jeri Wolfgang","Lee Kraft","Jeri Wolfgang","Lee Kraft","Jeri Wolfgang","JERI WOLFGANG"]
["JEANNINE LATSON","Jeannine Latson","Leilani Clermont","Jeannine Latson","Leilani Clermont","Jeannine Latson","JEANNINE LATSON"]
["JEANICE SCUDERI","Jeanice Scuderi","Leilani Studivant","Jeanice Scuderi","Leilani Studivant","Jeanice Scuderi","JEANICE SCUDERI"]
["JEAN SWINDELL","Jean Swindell","Leona Stmartin","Jean Swindell","Leona Stmartin","Jean Swindell","JEAN SWINDELL"]
["JANNIE HOCK","Jannie Hock","Linwood Fluker","Jannie Hock","Linwood Fluker","Jannie Hock","JANNIE HOCK"]
["IRIS BARWICK","Iris Barwick","Lita Lane","Iris Barwick","Lita Lane","Iris Barwick","IRIS BARWICK"]
["HYON EARHART","Hyon Earhart","Lizabeth Easterly","Hyon Earhart","Lizabeth Easterly","Hyon Earhart","HYON EARHART"]
["HAYDEN PUA","Hayden Pua","Loretta Whitis","Hayden Pua","Loretta Whitis","Hayden Pua","HAYDEN PUA"]
["HAYDEN COURSON","Hayden Courson","Loris Bouck","Hayden Courson","Loris Bouck","Hayden Courson","HAYDEN COURSON"]
["GWYN VANGORDER","Gwyn Vangorder","Lorriane Haile","Gwyn Vangorder","Lorriane Haile","Gwyn Vangorder","GWYN VANGORDER"]
["GUY ROPP","Guy Ropp","Lovella Defreitas","Guy Ropp","Lovella Defreitas","Guy Ropp","GUY ROPP"]
["GROVER FURY","Grover Fury","Lucilla Berta","Grover Fury","Lucilla Berta","Grover Fury","GROVER FURY"]
["GLINDA SCHREINER","Glinda Schreiner","Ludivina Roig","Glinda Schreiner","Ludivina Roig","Glinda Schreiner","GLINDA SCHREINER"]
["GERTRUDE LARSON","Gertrude Larson","Luna Wilbanks","Gertrude Larson","Luna Wilbanks","Gertrude Larson","GERTRUDE LARSON"]
["GEORGINA CLOWER","Georgina Clower","Luz Millette","Georgina Clower","Luz Millette","Georgina Clower","GEORGINA CLOWER"]
["GENARO LAUFER","Genaro Laufer","Macie Pumphrey","Genaro Laufer","Macie Pumphrey","Genaro Laufer","GENARO LAUFER"]
["GABRIEL OTWELL","Gabriel Otwell","Maile Wallace","Gabriel Otwell","Maile Wallace","Gabriel Otwell","GABRIEL OTWELL"]
["FRIDA MCCLUSKEY","Frida Mccluskey","Marcy Dupree","Frida Mccluskey","Marcy Dupree","Frida Mccluskey","FRIDA MCCLUSKEY"]
["FLORA NUCKOLS","Flora Nuckols","Margery Tow","Flora Nuckols","Margery Tow","Flora Nuckols","FLORA NUCKOLS"]
["FERNE HELSTROM","Ferne Helstrom","Margret Slaven","Ferne Helstrom","Margret Slaven","Ferne Helstrom","FERNE HELSTROM"]
["FERNANDA DOWD","Fernanda Dowd","Maricruz Resler","Fernanda Dowd","Maricruz Resler","Fernanda Dowd","FERNANDA DOWD"]
["FAUSTO CARDEN","Fausto Carden","Marilee Schlichting","Fausto Carden","Marilee Schlichting","Fausto Carden","FAUSTO CARDEN"]
["EVELINE TOUSANT","Eveline Tousant","Meagan Peller","Eveline Tousant","Meagan Peller","Eveline Tousant","EVELINE TOUSANT"]
["EUGENIA PARNELL","Eugenia Parnell","Melda Scholten","Eugenia Parnell","Melda Scholten","Eugenia Parnell","EUGENIA PARNELL"]
["EUFEMIA RIVARD","Eufemia Rivard","Melissia Hollow","Eufemia Rivard","Melissia Hollow","Eufemia Rivard","EUFEMIA RIVARD"]
["ENOLA SCHRUM","Enola Schrum","Mika Baney","Enola Schrum","Mika Baney","Enola Schrum","ENOLA SCHRUM"]
["ELLIS NISHIMOTO","Ellis Nishimoto","Nannette Rosson","Ellis Nishimoto","Nannette Rosson","Ellis Nishimoto","ELLIS NISHIMOTO"]
["ELISABETH KOTTWITZ","Elisabeth Kottwitz","Nelia Lint","Elisabeth Kottwitz","Nelia Lint","Elisabeth Kottwitz",{"$f":"UPPER(F131)","v":"ELISABETH KOTTWITZ"}]
["ELINA BOBB","Elina Bobb","Neville Vitiello","Elina Bobb","Neville Vitiello","Elina Bobb","ELINA BOBB"]
["ELBA BERGMAN","Elba Bergman","Nieves Haner","Elba Bergman","Nieves Haner","Elba Bergman","ELBA BERGMAN"]
["EDYTH HAVEL","Edyth Havel","Nigel Harbor","Edyth Havel","Nigel Harbor","Edyth Havel","EDYTH HAVEL"]
["EDUARDO SWOFFORD","Eduardo Swofford","Nita Gabourel","Eduardo Swofford","Nita Gabourel","Eduardo Swofford","EDUARDO SWOFFORD"]
["EBONIE FINNERTY","Ebonie Finnerty","Noble Kenley","Ebonie Finnerty","Noble Kenley","Ebonie Finnerty","EBONIE FINNERTY"]
["DUSTY BEWLEY","Dusty Bewley","Norene Hunsaker","Dusty Bewley","Norene Hunsaker","Dusty Bewley","DUSTY BEWLEY"]
["DUNCAN GEHL","Duncan Gehl","Omer Noell","Duncan Gehl","Omer Noell","Duncan Gehl","DUNCAN GEHL"]
["DIEGO OMEARA","Diego Omeara","Orpha Wager","Diego Omeara","Orpha Wager","Diego Omeara","DIEGO OMEARA"]
["DELTA IMHOFF","Delta Imhoff","Otis Havener","Delta Imhoff","Otis Havener","Delta Imhoff","DELTA IMHOFF"]
["DELINDA HAMBY","Delinda Hamby","Pamala Lauderdale","Delinda Hamby","Pamala Lauderdale","Delinda Hamby","DELINDA HAMBY"]
["DEEANN KREGER","Deeann Kreger","Patrice Caruso","Deeann Kreger","Patrice Caruso","Deeann Kreger","DEEANN KREGER"]
["DEBBIE BOURG","Debbie Bourg","Priscilla Bohrer","Debbie Bourg","Priscilla Bohrer","Debbie Bourg","DEBBIE BOURG"]
["DANTE VOTAW","Dante Votaw","Rafael Cater","Dante Votaw","Rafael Cater","Dante Votaw","DANTE VOTAW"]
["DANA BEECHAM","Dana Beecham","Reginia Schurr","Dana Beecham","Reginia Schurr","Dana Beecham","DANA BEECHAM"]
["DAKOTA LIBBEY","Dakota Libbey","Renae Winner","Dakota Libbey","Renae Winner","Dakota Libbey","DAKOTA LIBBEY"]
["CRISTIE COLES","Cristie Coles","Ressie Silvera","Cristie Coles","Ressie Silvera","Cristie Coles","CRISTIE COLES"]
["CORINNA SPADY","Corinna Spady","Richie Vangieson","Corinna Spady","Richie Vangieson","Corinna Spady","CORINNA SPADY"]
["COLLIN AGUILERA","Collin Aguilera","Rivka Varona","Collin Aguilera","Rivka Varona","Collin Aguilera","COLLIN AGUILERA"]
["CLORINDA COY","Clorinda Coy","Robena Resler","Clorinda Coy","Robena Resler","Clorinda Coy","CLORINDA COY"]
["CLARISSA PLACE","Clarissa Place","Rosette Patz","Clarissa Place","Rosette Patz","Clarissa Place","CLARISSA PLACE"]
["CINDERELLA DESSERT","Cinderella Dessert","Rosita Speir","Cinderella Dessert","Rosita Speir","Cinderella Dessert","CINDERELLA DESSERT"]
["CHI SEALEY","Chi Sealey","Royce Dierking","Chi Sealey","Royce Dierking","Chi Sealey","CHI SEALEY"]
["CHERELLE DURANTE","Cherelle Durante","Sal Setliff","Cherelle Durante","Sal Setliff","Cherelle Durante","CHERELLE DURANTE"]
["CHARLSIE SMOLEN","Charlsie Smolen","Samara Gadson","Charlsie Smolen","Samara Gadson","Charlsie Smolen","CHARLSIE SMOLEN"]
["CHARLOTT CAPELLA","Charlott Capella","Samira Lipton","Charlott Capella","Samira Lipton","Charlott Capella","CHARLOTT CAPELLA"]
["CHANEL WATERHOUSE","Chanel Waterhouse","Sanford Motter","Chanel Waterhouse","Sanford Motter","Chanel Waterhouse","CHANEL WATERHOUSE"]
["CESAR HAVEL","Cesar Havel","Serafina Prater","Cesar Havel","Serafina Prater","Cesar Havel","CESAR HAVEL"]
["CARLIE MCCARTHY","Carlie Mccarthy","Shaniqua Buttery","Carlie Mccarthy","Shaniqua Buttery","Carlie Mccarthy","CARLIE MCCARTHY"]
["CANDI SURACE","Candi Surace","Sharolyn Masten","Candi Surace","Sharolyn Masten","Candi Surace","CANDI SURACE"]
["CALVIN LANGEVIN","Calvin Langevin","Sheldon Kiesling","Calvin Langevin","Sheldon Kiesling","Calvin Langevin","CALVIN LANGEVIN"]
["BYRON BEVIS","Byron Bevis","Sherly Burson","Byron Bevis","Sherly Burson","Byron Bevis","BYRON BEVIS"]
["BURL CALAHAN","Burl Calahan","Signe Rodriguez","Burl Calahan","Signe Rodriguez","Burl Calahan","BURL CALAHAN"]
["BRIGID HOBDY","Brigid Hobdy","Slyvia Kuchera","Brigid Hobdy","Slyvia Kuchera","Brigid Hobdy","BRIGID HOBDY"]
["BRIANNA CLEMMER","Brianna Clemmer","Soraya Morones","Brianna Clemmer","Soraya Morones","Brianna Clemmer","BRIANNA CLEMMER"]
["BRAIN MARESCA","Brain Maresca","Suzanne Coachman","Brain Maresca","Suzanne Coachman","Brain Maresca","BRAIN MARESCA"]
["BRADFORD SUHR","Bradford Suhr","Suzy Portales","Bradford Suhr","Suzy Portales","Bradford Suhr","BRADFORD SUHR"]
["BOOKER BAUMBACH","Booker Baumbach","Tama Murrah","Booker Baumbach","Tama Murrah","Booker Baumbach","BOOKER BAUMBACH"]
["BETSY CHRISMAN","Betsy Chrisman","Tamela Gillett","Betsy Chrisman","Tamela Gillett","Betsy Chrisman","BETSY CHRISMAN"]
["BETHANIE ROLFES","Bethanie Rolfes","Tawnya Higby","Bethanie Rolfes","Tawnya Higby","Bethanie Rolfes","BETHANIE ROLFES"]
["AZUCENA WYATT","Azucena Wyatt","Tenisha Hadden","Azucena Wyatt","Tenisha Hadden","Azucena Wyatt","AZUCENA WYATT"]
["AURELIO LINE","Aurelio Line","Tennie Riddell","Aurelio Line","Tennie Riddell","Aurelio Line","AURELIO LINE"]
["ASHLEA MAHAN","Ashlea Mahan","Teodoro Renaud","Ashlea Mahan","Teodoro Renaud","Ashlea Mahan","ASHLEA MAHAN"]
["ARNOLD GROESBECK","Arnold Groesbeck","Terrie Sholes","Arnold Groesbeck","Terrie Sholes","Arnold Groesbeck","ARNOLD GROESBECK"]
["ARDELL STANBERRY","Ardell Stanberry","Thomasena Eisner","Ardell Stanberry","Thomasena Eisner","Ardell Stanberry","ARDELL STANBERRY"]
["ANNELLE GIBBON","Annelle Gibbon","Tina Buell","Annelle Gibbon","Tina Buell","Annelle Gibbon","ANNELLE GIBBON"]
["ANGEL PIRO","Angel Piro","Todd Brimage","Angel Piro","Todd Brimage","Angel Piro","ANGEL PIRO"]
["ANDREW AXELROD","Andrew Axelrod","Tracey Begay","Andrew Axelrod","Tracey Begay","Andrew Axelrod","ANDREW AXELROD"]
["AN WIRTH","An Wirth","Veola Diggins","An Wirth","Veola Diggins","An Wirth","AN WIRTH"]
["AMAL SOULIERE","Amal Souliere","Verlene Paden","Amal Souliere","Verlene Paden","Amal Souliere","AMAL SOULIERE"]
["ALYCIA HAMSHER","Alycia Hamsher","Vernetta Leveque","Alycia Hamsher","Vernetta Leveque","Alycia Hamsher","ALYCIA HAMSHER"]
["ALLIE BEIER","Allie Beier","Versie Hawker","Allie Beier","Versie Hawker","Allie Beier","ALLIE BEIER"]
["ALIX RUANO","Alix Ruano","Vertie Cardinal","Alix Ruano","Vertie Cardinal","Alix Ruano","ALIX RUANO"]
["ALICE AUSLANDER","Alice Auslander","Veta Valle","Alice Auslander","Veta Valle","Alice Auslander","ALICE AUSLANDER"]
["ALEXANDER MILLWOOD","Alexander Millwood","Victoria Dejesus","Alexander Millwood","Victoria Dejesus","Alexander Millwood","ALEXANDER MILLWOOD"]
["ALENA ECKLUND","Alena Ecklund","Viola Gean","Alena Ecklund","Viola Gean","Alena Ecklund","ALENA ECKLUND"]
["ALDO ROGAN","Aldo Rogan","Wendy Finkle","Aldo Rogan","Wendy Finkle","Aldo Rogan","ALDO ROGAN"]
["ALBERTHA FURBY","Albertha Furby","Will Prigge","Albertha Furby","Will Prigge","Albertha Furby","ALBERTHA FURBY"]
["ADALBERTO WOLFF","Adalberto Wolff","Willow Bronner","Adalberto Wolff","Willow Bronner","Adalberto Wolff","ADALBERTO WOLFF"]
["ABRAM LAWTON","Abram Lawton","Winford Raver","Abram Lawton","Winford Raver","Abram Lawton","ABRAM LAWTON"]
["ABBIE DYKSTRA","Abbie Dykstra","Yadira Racanelli","Abbie Dykstra","Yadira Racanelli","Abbie Dykstra","ABBIE DYKSTRA"]